[Event "IIFL Wealth  4th Mumbai Junior U-13"]
[Site "Mumbai"]
[Date "2019.01.02"]
[Round "4"]
[White "Sushanth Kamabathula"]
[Black "Shrey Nilkant"]
[Result "1-0"]
[ECO "C55"]
[WhiteElo "1267"]
[BlackElo "1466"]
[Annotator "NA RC"]
[PlyCount "83"]
[EventDate "2018.12.30"]
[EventType "swiss"]
[EventCountry "IND"]
[SourceTitle "playchess.com"]
[Source "ChessBase"]
[SourceQuality "1"]
[TimeControl "40/5400+30:1800+30"]

1. e4 {[%emt 0:00:26]} e5 {[%emt 0:00:00]} 2. Nf3 {[%emt 0:00:09]} Nc6 {[%emt 0:00:07]} 3. Bc4 {[%emt 0:00:13]} Nf6 {[%emt 0:00:12]} 4. d3 {[%emt 0:00:08]} Be7 {[%emt 0:00:30]} 5. O-O {[%emt 0:04:26]} O-O {[%emt 0:00:14]} 6. c3 {[%emt 0:00:29]} d6 {[%emt 0:00:16]} 7. a4 {[%emt 0:00:37]} Na5 {[%emt 0:00:43]} 8. Ba2 c5 {[%emt 0:00:25]} 9. Na3 {[%emt 0:03:16]} Nc6 {[%emt 0:01:38]} 10. Re1 {[%emt 0:01:46]} Re8 {[%emt 0:01:30]} 11. Nc2 {[%emt 0:07:29]} h6 {[%emt 0:02:18]} 12. Ne3 {[%emt 0:10:04]} Bf8 {[%emt 0:02:31]} 13. Bd2 {[%emt 0:08:43]} Be6 {[%emt 0:07:25]} 14. Nd5 {[%emt 0:00:59]} Bxd5 {[%emt 0:18:32]} 15. Bxd5 {[%emt 0:00:14]} Nxd5 {[%emt 0:04:51]} 16. exd5 {[%emt 0:00:12]} Ne7 {[%emt 0:00:13]} 17. c4 g5 {[%emt 0:03:59]} 18. h3 {[%emt 0:17:39]} f5 {[%emt 0:04:52]} 19. Nh2 {[%emt 0:05:53]} Ng6 {[%emt 0:04:07]} 20. g3 {[%emt 0:08:23]} Bg7 {[%emt 0:06:42]} 21. Qc2 {[%emt 0:02:44]} Qd7 {[%emt 0:04:46]} 22. Bc3 {[%emt 0:02:43]} Qf7 {[%emt 0:03:40]} 23. Rab1 {[%emt 0:02:39]} f4 {[%emt 0:13:41]} 24. b4 {[%emt 0:01:23]} Qf5 {[%emt 0:02:54]} 25. g4 {[%emt 0:00:50]} Qf7 {[%emt 0:00:08]} 26. Nf3 {[%emt 0:00:10]} h5 {[%emt 0:04:54]} 27. Nxg5 {[%emt 0:15:00]} Qf6 {[%emt 0:00:35]} 28. Nf3 {[%emt 0:00:21]} Nh4 {[%emt 0:00:38]} 29. Qe2 {[%emt 0:01:57]} Kf7 {[%emt 0:01:21]} 30. bxc5 {[%emt 0:00:18]} Nxf3+ {[%emt 0:07:58]} 31. Qxf3 {[%emt 0:00:13]} hxg4 {[%emt 0:00:11]} 32. Rxb7+ {[%emt 0:01:09]} Re7 {[%emt 0:00:03]} 33. Rxe7+ {[%emt 0:00:09]} Qxe7 {[%emt 0:00:11]} 34. hxg4 {[%emt 0:02:45]} dxc5 {[%emt 0:00:20]} 35. d6 {[%emt 0:00:28]} Qe8 {[%emt 0:01:27]} 36. Qd5+ {[%emt 0:00:17]} Kg6 {[%emt 0:00:52]} 37. Bxe5 {[%emt 0:02:04]} Qc8 {[%emt 0:01:08]} 38. Qe4+ {[%emt 0:00:41]} Kf7 {[%emt 0:00:41]} 39. Qxf4+ {[%emt 0:00:08]} Kg8 {[%emt 0:00:08]} 40. Bxg7 {[%emt 0:00:00]} Kxg7 {[%emt 0:00:00]} 41. Re7+ {[%emt 0:00:54]} Kh8 {[%emt 0:00:40]} 42. Qf6+ 1-0

[Event "IIFL Wealth  4th Mumbai Junior U-13"]
[Site "Mumbai"]
[Date "2019.01.02"]
[Round "4"]
[White "Rout Yashita"]
[Black "Nanal Arnav"]
[Result "0-1"]
[ECO "B92"]
[WhiteElo "1264"]
[BlackElo "1456"]
[Annotator "NA RC"]
[PlyCount "112"]
[EventDate "2018.12.30"]
[EventType "swiss"]
[EventCountry "IND"]
[SourceTitle "playchess.com"]
[Source "ChessBase"]
[SourceQuality "1"]
[TimeControl "40/5400+30:1800+30"]

1. e4 {[%emt 0:07:51]} c5 {[%emt 0:00:00]} 2. Nf3 {[%emt 0:00:22]} d6 {[%emt 0:00:00]} 3. d4 {[%emt 0:00:25]} cxd4 {[%emt 0:00:07]} 4. Nxd4 {[%emt 0:00:15]} Nf6 {[%emt 0:00:10]} 5. Nc3 {[%emt 0:00:34]} a6 {[%emt 0:00:06]} 6. Be2 {[%emt 0:00:43]} e5 {[%emt 0:00:12]} 7. Nb3 {[%emt 0:00:48]} Be6 {[%emt 0:00:17]} 8. O-O {[%emt 0:00:23]} Be7 {[%emt 0:00:08]} 9. Qd3 {[%emt 0:00:43]} Nbd7 {[%emt 0:01:06]} 10. Bd2 {[%emt 0:00:47]} O-O {[%emt 0:00:31]} 11. Nd5 {[%emt 0:00:11]} Bxd5 {[%emt 0:02:44]} 12. exd5 {[%emt 0:00:13]} b5 {[%emt 0:04:46]} 13. Bf3 {[%emt 0:13:48]} Re8 {[%emt 0:03:48]} 14. Rfe1 {[%emt 0:01:11]} Qc7 {[%emt 0:04:12]} 15. Rad1 {[%emt 0:07:05]} Rac8 {[%emt 0:03:56]} 16. c3 {[%emt 0:00:52]} h6 {[%emt 0:02:58]} 17. Bc1 {[%emt 0:01:09]} Bf8 {[%emt 0:06:07]} 18. Be4 {[%emt 0:07:06]} Nxe4 {[%emt 0:03:16]} 19. Qxe4 {[%emt 0:00:56]} Nf6 {[%emt 0:03:58]} 20. Qd3 {[%emt 0:02:36]} Qc4 {[%emt 0:02:26]} 21. f3 {[%emt 0:09:55]} a5 {[%emt 0:21:21]} 22. Qxc4 {[%emt 0:02:40]} bxc4 {[%emt 0:00:45]} 23. Nd2 {[%emt 0:04:56]} Rc5 {[%emt 0:04:44]} 24. Ne4 {[%emt 0:00:11]} Nxe4 {[%emt 0:00:08]} 25. fxe4 {[%emt 0:00:11]} Be7 {[%emt 0:01:33]} 26. Rf1 {[%emt 0:02:23]} Bg5 {[%emt 0:00:44]} 27. Bxg5 {[%emt 0:03:10]} hxg5 {[%emt 0:00:01]} 28. Rd2 {[%emt 0:01:46]} Rb8 {[%emt 0:00:31]} 29. Rff2 {[%emt 0:00:55]} a4 {[%emt 0:01:51]} 30. a3 {[%emt 0:00:21]} f6 {[%emt 0:00:38]} 31. g4 {[%emt 0:00:06]} Kf7 {[%emt 0:00:30]} 32. Kg2 {[%emt 0:00:15]} Rh8 {[%emt 0:00:09]} 33. Kg3 {[%emt 0:00:30]} Rb5 {[%emt 0:00:32]} 34. h3 {[%emt 0:00:14]} Rbb8 {[%emt 0:01:48]} 35. Rf1 {[%emt 0:00:15]} Rh4 {[%emt 0:00:14]} 36. Rh2 {[%emt 0:00:31]} Rf8 {[%emt 0:00:16]} 37. Rg2 {[%emt 0:02:05]} Ke7 {[%emt 0:00:25]} 38. Rgf2 {[%emt 0:00:07]} Rh7 {[%emt 0:00:27]} 39. Rf3 {[%emt 0:01:06]} g6 {[%emt 0:00:50]} 40. R3f2 {[%emt 0:00:00]} Rhf7 {[%emt 0:00:00]} 41. Rf3 {[%emt 0:05:39]} f5 {[%emt 0:06:52]} 42. gxf5 {[%emt 0:01:40]} gxf5 {[%emt 0:00:06]} 43. exf5 {[%emt 0:08:08]} Kf6 {[%emt 0:00:55]} 44. Re3 {[%emt 0:00:35]} Rh7 {[%emt 0:01:26]} 45. Re4 {[%emt 0:01:00]} Rfh8 {[%emt 0:01:25]} 46. Rh1 {[%emt 0:00:27]} Rh4 {[%emt 0:00:28]} 47. Rxh4 {[%emt 0:02:41]} Rxh4 {[%emt 0:00:28]} 48. Rf1 {[%emt 0:00:21]} Rf4 {[%emt 0:00:10]} 49. Rxf4 {[%emt 0:05:41]} exf4+ {[%emt 0:00:59]} 50. Kg4 {[%emt 0:00:15]} Ke5 {[%emt 0:00:20]} 51. h4 {[%emt 0:00:13]} gxh4 {[%emt 0:00:24]} 52. Kxh4 {[%emt 0:00:06]} Kxf5 {[%emt 0:00:08]} 53. Kh3 {[%emt 0:00:14]} Ke4 {[%emt 0:00:04]} 54. Kg2 {[%emt 0:00:04]} Ke3 {[%emt 0:00:08]} 55. Kf1 {[%emt 0:00:09]} f3 {[%emt 0:00:21]} 56. Ke1 {[%emt 0:00:05]} f2+ 0-1

[Event "IIFL Wealth  4th Mumbai Junior U-13"]
[Site "Mumbai"]
[Date "2019.01.02"]
[Round "4"]
[White "Haldankar Dhruv"]
[Black "Sairaj Dilip Vernekar"]
[Result "0-1"]
[ECO "B41"]
[WhiteElo "1245"]
[BlackElo "1445"]
[Annotator "NA"]
[PlyCount "88"]
[EventDate "2018.12.30"]
[EventType "swiss"]
[EventCountry "IND"]
[SourceTitle "playchess.com"]
[Source "ChessBase"]
[SourceQuality "1"]
[TimeControl "40/5400+30:1800+30"]

1. e4 {[%emt 0:00:00]} c5 {[%emt 0:00:00]} 2. Nf3 {[%emt 0:00:00]} e6 {[%emt 0:00:00]} 3. d4 {[%emt 0:00:35]} cxd4 {[%emt 0:01:01]} 4. Nxd4 {[%emt 0:00:04]} a6 {[%emt 0:01:07]} 5. a3 {[%emt 0:05:57]} b5 {[%emt 0:02:43]} 6. Nc3 {[%emt 0:10:23]} Bb7 {[%emt 0:02:44]} 7. b4 {[%emt 0:05:50]} Qc7 {[%emt 0:05:22]} 8. Bb2 {[%emt 0:03:23]} Nf6 {[%emt 0:01:37]} 9. Bd3 {[%emt 0:00:23]} Be7 {[%emt 0:01:59]} 10. O-O {[%emt 0:04:05]} O-O {[%emt 0:02:31]} 11. Kh1 {[%emt 0:04:19]} d6 {[%emt 0:05:38]} 12. f4 {[%emt 0:02:25]} Nbd7 {[%emt 0:01:11]} 13. g4 {[%emt 0:08:42]} d5 {[%emt 0:02:29]} 14. e5 {[%emt 0:00:58]} Ne4 {[%emt 0:00:32]} 15. Qe1 {[%emt 0:03:52]} Nxc3 {[%emt 0:08:19]} 16. Qxc3 {[%emt 0:02:20]} Qxc3 {[%emt 0:00:44]} 17. Bxc3 {[%emt 0:00:02]} g5 {[%emt 0:04:12]} 18. f5 {[%emt 0:06:05]} Nxe5 {[%emt 0:03:28]} 19. fxe6 {[%emt 0:01:56]} fxe6 {[%emt 0:01:19]} 20. Nxe6 {[%emt 0:01:24]} Rxf1+ {[%emt 0:00:29]} 21. Rxf1 {[%emt 0:00:02]} d4+ {[%emt 0:00:14]} 22. Kg1 {[%emt 0:01:12]} dxc3 {[%emt 0:00:06]} 23. Bf5 {[%emt 0:02:17]} Nc4 {[%emt 0:02:55]} 24. Bxh7+ {[%emt 0:01:16]} Kxh7 {[%emt 0:00:57]} 25. Rf7+ {[%emt 0:00:02]} Kg6 {[%emt 0:00:13]} 26. Rxe7 {[%emt 0:00:08]} Kf6 {[%emt 0:00:57]} 27. Rxb7 {[%emt 0:00:05]} Kxe6 {[%emt 0:00:04]} 28. Rc7 {[%emt 0:00:13]} a5 {[%emt 0:02:42]} 29. Rc5 {[%emt 0:02:02]} Nxa3 {[%emt 0:00:15]} 30. bxa5 {[%emt 0:00:13]} b4 {[%emt 0:00:31]} 31. Rc6+ {[%emt 0:00:34]} Kd5 {[%emt 0:00:19]} 32. Rg6 {[%emt 0:00:28]} Nxc2 {[%emt 0:00:08]} 33. Rxg5+ {[%emt 0:00:04]} Kc4 {[%emt 0:00:07]} 34. Rg7 {[%emt 0:00:13]} b3 {[%emt 0:00:07]} 35. Rc7+ {[%emt 0:00:04]} Kb4 {[%emt 0:00:05]} 36. Rb7+ {[%emt 0:00:05]} Ka3 {[%emt 0:00:03]} 37. g5 {[%emt 0:00:07]} b2 {[%emt 0:00:06]} 38. h4 {[%emt 0:00:23]} Nb4 {[%emt 0:00:05]} 39. Rxb4 {[%emt 0:00:08]} Kxb4 {[%emt 0:00:04]} 40. g6 {[%emt 0:00:00]} b1=Q+ {[%emt 0:00:00]} 41. Kg2 {[%emt 0:00:09]} Qxg6+ {[%emt 0:00:37]} 42. Kf1 {[%emt 0:00:09]} Qc2 {[%emt 0:00:10]} 43. h5 {[%emt 0:00:06]} Rxa5 {[%emt 0:00:03]} 44. h6 {[%emt 0:00:06]} Ra1# {[%emt 0:00:02]} 0-1

[Event "IIFL Wealth  4th Mumbai Junior U-13"]
[Site "Mumbai"]
[Date "2019.01.02"]
[Round "4"]
[White "Parab Ram Vishal"]
[Black "Sarvade Mihiir"]
[Result "1-0"]
[ECO "B50"]
[WhiteElo "1242"]
[BlackElo "1563"]
[Annotator "NA"]
[PlyCount "51"]
[EventDate "2018.12.30"]
[EventType "swiss"]
[EventCountry "IND"]
[SourceTitle "playchess.com"]
[Source "ChessBase"]
[SourceQuality "1"]
[TimeControl "40/5400+30:1800+30"]

1. e4 {[%emt 0:00:00]} c5 {[%emt 0:03:47]} 2. Nf3 {[%emt 0:00:28]} d6 {[%emt 0:00:03]} 3. Bc4 {[%emt 0:01:36]} Nc6 {[%emt 0:05:14]} 4. O-O {[%emt 0:02:06]} g6 {[%emt 0:03:55]} 5. Nc3 {[%emt 0:01:54]} Bg7 {[%emt 0:00:31]} 6. d3 {[%emt 0:01:52]} Nf6 {[%emt 0:02:43]} 7. Be3 {[%emt 0:02:14]} O-O {[%emt 0:01:46]} 8. d4 {[%emt 0:04:02]} Ng4 {[%emt 0:21:39]} 9. dxc5 {[%emt 0:03:51]} Nxe3 {[%emt 0:01:26]} 10. fxe3 {[%emt 0:01:30]} Na5 {[%emt 0:05:29]} 11. Be2 {[%emt 0:04:27]} dxc5 {[%emt 0:03:05]} 12. Qe1 {[%emt 0:05:43]} e6 {[%emt 0:08:44]} 13. Rd1 {[%emt 0:02:38]} Qe7 {[%emt 0:01:43]} 14. e5 {[%emt 0:02:57]} Nc6 {[%emt 0:06:28]} 15. Qg3 {[%emt 0:02:10]} Nb4 {[%emt 0:09:22]} 16. Rd2 {[%emt 0:03:47]} Bh6 {[%emt 0:03:25]} 17. Qf2 {[%emt 0:01:52]} Rd8 {[%emt 0:03:17]} 18. Rfd1 {[%emt 0:01:39]} Rxd2 {[%emt 0:02:55]} 19. Rxd2 {[%emt 0:01:17]} Qc7 {[%emt 0:04:53]} 20. a3 {[%emt 0:02:06]} Nc6 {[%emt 0:01:18]} 21. Ne4 {[%emt 0:04:53]} Ne7 {[%emt 0:04:29]} 22. Nfg5 {[%emt 0:07:51]} Bxg5 {[%emt 0:01:46]} 23. Nxg5 {[%emt 0:01:45]} Nc6 {[%emt 0:01:16]} 24. Qf6 {[%emt 0:02:34]} h6 {[%emt 0:00:35]} 25. Bb5 {[%emt 0:01:36]} Qe7 {[%emt 0:00:58]} 26. Rd8+ {[%emt 0:00:38]} 1-0

[Event "IIFL Wealth  4th Mumbai Junior U-13"]
[Site "Mumbai"]
[Date "2019.01.02"]
[Round "4"]
[White "Shah Vrisha Parag"]
[Black "Athalye Varad"]
[Result "0-1"]
[ECO "B41"]
[WhiteElo "1240"]
[BlackElo "1442"]
[Annotator "NA"]
[PlyCount "110"]
[EventDate "2018.12.30"]
[EventType "swiss"]
[EventCountry "IND"]
[SourceTitle "playchess.com"]
[Source "ChessBase"]
[SourceQuality "1"]
[TimeControl "40/5400+30:1800+30"]

1. e4 {[%emt 0:00:00]} c5 {[%emt 0:00:00]} 2. Nf3 {[%emt 0:00:03]} e6 {[%emt 0:00:05]} 3. d4 {[%emt 0:00:14]} cxd4 {[%emt 0:00:06]} 4. Nxd4 {[%emt 0:00:15]} a6 {[%emt 0:00:03]} 5. c4 {[%emt 0:01:29]} Nf6 {[%emt 0:00:59]} 6. Bd3 {[%emt 0:02:57]} Qc7 {[%emt 0:00:23]} 7. Nc3 {[%emt 0:02:05]} Nc6 {[%emt 0:00:10]} 8. Nxc6 {[%emt 0:05:17]} bxc6 {[%emt 0:02:50]} 9. Be3 {[%emt 0:03:13]} Bb7 {[%emt 0:00:58]} 10. f3 {[%emt 0:08:52]} Be7 {[%emt 0:05:25]} 11. Qd2 {[%emt 0:04:52]} O-O {[%emt 0:02:10]} 12. Bf4 {[%emt 0:05:00]} e5 {[%emt 0:02:19]} 13. Bg5 {[%emt 0:00:28]} Rad8 {[%emt 0:00:43]} 14. Bxf6 {[%emt 0:01:18]} Bxf6 {[%emt 0:00:12]} 15. h4 {[%emt 0:00:36]} Kh8 {[%emt 0:01:38]} 16. g4 {[%emt 0:00:10]} d5 {[%emt 0:01:24]} 17. cxd5 {[%emt 0:03:59]} cxd5 {[%emt 0:00:28]} 18. g5 {[%emt 0:02:30]} Be7 {[%emt 0:01:27]} 19. Rc1 {[%emt 0:01:32]} Qd7 {[%emt 0:02:11]} 20. exd5 {[%emt 0:02:23]} Bxd5 {[%emt 0:02:18]} 21. Bxa6 {[%emt 0:00:35]} Bxf3 {[%emt 0:02:15]} 22. Qxd7 {[%emt 0:00:12]} Rxd7 {[%emt 0:00:05]} 23. Rf1 {[%emt 0:01:11]} e4 {[%emt 0:01:01]} 24. Be2 {[%emt 0:01:15]} h6 {[%emt 0:07:20]} 25. Bxf3 {[%emt 0:01:00]} exf3 {[%emt 0:00:02]} 26. Rxf3 {[%emt 0:00:37]} hxg5 {[%emt 0:00:03]} 27. hxg5 {[%emt 0:00:30]} Bxg5 {[%emt 0:00:01]} 28. Rc2 {[%emt 0:00:48]} Re8+ {[%emt 0:06:01]} 29. Kf1 {[%emt 0:02:54]} Kg8 {[%emt 0:03:09]} 30. Rf5 {[%emt 0:01:16]} Bf6 {[%emt 0:02:01]} 31. Nd5 {[%emt 0:01:41]} Bh4 {[%emt 0:06:58]} 32. Re2 {[%emt 0:03:29]} Rxe2 {[%emt 0:07:23]} 33. Kxe2 {[%emt 0:00:08]} g6 {[%emt 0:00:10]} 34. Nf6+ {[%emt 0:00:16]} Bxf6 {[%emt 0:00:02]} 35. Rxf6 {[%emt 0:00:11]} Rc7 {[%emt 0:00:46]} 36. Rd6 {[%emt 0:00:24]} g5 {[%emt 0:01:06]} 37. Kd2 {[%emt 0:00:25]} Kg7 {[%emt 0:00:34]} 38. a4 {[%emt 0:00:23]} g4 {[%emt 0:00:11]} 39. Rd4 {[%emt 0:00:09]} f5 {[%emt 0:00:11]} 40. b4 {[%emt 0:00:00]} Kg6 {[%emt 0:00:00]} 41. a5 {[%emt 0:00:32]} g3 {[%emt 0:02:02]} 42. Ke2 {[%emt 0:00:41]} Kg5 {[%emt 0:02:41]} 43. Kf3 {[%emt 0:00:27]} Rc3+ {[%emt 0:00:40]} 44. Kg2 {[%emt 0:00:31]} f4 {[%emt 0:01:08]} 45. Rd8 {[%emt 0:00:35]} Rb3 {[%emt 0:01:52]} 46. Rg8+ {[%emt 0:00:11]} Kf5 {[%emt 0:00:14]} 47. Rf8+ {[%emt 0:00:02]} Ke5 {[%emt 0:00:17]} 48. Re8+ {[%emt 0:00:22]} Kd6 {[%emt 0:00:29]} 49. Re4 {[%emt 0:00:15]} Rb2+ {[%emt 0:00:23]} 50. Kf1 {[%emt 0:03:00]} f3 {[%emt 0:01:03]} 51. Rd4+ {[%emt 0:00:19]} Ke5 {[%emt 0:00:37]} 52. Rd1 {[%emt 0:00:03]} Kf4 {[%emt 0:01:37]} 53. a6 {[%emt 0:00:33]} g2+ {[%emt 0:00:03]} 54. Kg1 {[%emt 0:00:11]} Kg3 {[%emt 0:00:03]} 55. a7 {[%emt 0:01:41]} f2# {[%emt 0:00:05] Rd8} 0-1

[Event "IIFL Wealth  4th Mumbai Junior U-13"]
[Site "Mumbai"]
[Date "2019.01.02"]
[Round "4"]
[White "Ananya Parikh"]
[Black "Singh, Arjun Kumar"]
[Result "0-1"]
[ECO "B41"]
[WhiteElo "1235"]
[BlackElo "1461"]
[Annotator "NA RC"]
[PlyCount "116"]
[EventDate "2018.12.30"]
[EventType "swiss"]
[EventCountry "IND"]
[SourceTitle "playchess.com"]
[Source "ChessBase"]
[SourceQuality "1"]
[TimeControl "40/5400+30:1800+30"]

1. e4 {[%emt 0:08:20]} c5 {[%emt 0:00:44]} 2. Ne2 {[%emt 0:00:05]} e6 {[%emt 0:00:10]} 3. d4 {[%emt 0:00:55]} cxd4 {[%emt 0:00:52]} 4. Nxd4 {[%emt 0:00:04]} a6 {[%emt 0:00:25]} 5. c4 {[%emt 0:00:33]} Qc7 {[%emt 0:02:25]} 6. a3 {[%emt 0:02:30]} Nf6 {[%emt 0:00:37]} 7. Nc3 {[%emt 0:00:24]} b6 {[%emt 0:01:16]} 8. Be3 {[%emt 0:04:24]} Bb7 {[%emt 0:04:47]} 9. Bd3 {[%emt 0:03:57]} Be7 {[%emt 0:02:18]} 10. O-O {[%emt 0:02:38]} d6 {[%emt 0:01:21]} 11. f4 {[%emt 0:04:08]} Nbd7 {[%emt 0:03:26]} 12. b4 {[%emt 0:05:52]} O-O {[%emt 0:01:14]} 13. Rc1 {[%emt 0:05:18]} Rac8 {[%emt 0:01:11]} 14. Qf3 {[%emt 0:02:46]} Nb8 {[%emt 0:04:22]} 15. f5 {[%emt 0:05:11]} Nc6 {[%emt 0:09:59]} 16. Nxc6 {[%emt 0:12:53]} Qxc6 {[%emt 0:01:48]} 17. Qg3 {[%emt 0:02:58]} Ne8 {[%emt 0:09:33]} 18. Qh3 {[%emt 0:12:15]} exf5 {[%emt 0:00:36]} 19. Rxf5 {[%emt 0:04:09]} g6 {[%emt 0:02:14]} 20. Rf3 {[%emt 0:01:10]} Qc7 {[%emt 0:02:38]} 21. Nd5 {[%emt 0:03:49]} Qd8 {[%emt 0:04:06]} 22. Bxb6 {[%emt 0:00:26]} Nc7 {[%emt 0:00:03]} 23. Nxc7 {[%emt 0:02:55]} Rxc7 {[%emt 0:00:09]} 24. Bxc7 {[%emt 0:03:10]} Qxc7 {[%emt 0:00:06]} 25. Qh6 {[%emt 0:00:38]} Bc8 {[%emt 0:02:02]} 26. Rcf1 {[%emt 0:02:44]} Qd8 {[%emt 0:00:30]} 27. Qe3 {[%emt 0:02:27]} Bg5 {[%emt 0:00:13]} 28. Qf2 {[%emt 0:00:28]} Qe7 {[%emt 0:00:28]} 29. h3 {[%emt 0:02:06]} Bb7 {[%emt 0:00:59]} 30. Re1 {[%emt 0:01:16]} Re8 {[%emt 0:00:49]} 31. g3 {[%emt 0:01:24]} f5 {[%emt 0:01:26]} 32. h4 {[%emt 0:01:48]} Bh6 {[%emt 0:00:24]} 33. Bc2 {[%emt 0:01:47]} fxe4 {[%emt 0:00:21]} 34. Rb3 {[%emt 0:00:33]} e3 {[%emt 0:00:31]} 35. Qe2 {[%emt 0:00:32]} Qe5 {[%emt 0:01:07]} 36. Kh2 {[%emt 0:00:34]} Rf8 {[%emt 0:00:13]} 37. Rxe3 {[%emt 0:00:49]} Qxe3 {[%emt 0:00:08]} 38. Qxe3 {[%emt 0:00:29]} Bxe3 {[%emt 0:00:04]} 39. Rxe3 {[%emt 0:00:32]} Rf2+ {[%emt 0:00:06]} 40. Kg1 {[%emt 0:00:00]} Rxc2 {[%emt 0:00:00]} 41. Re8+ {[%emt 0:01:52]} Kf7 {[%emt 0:00:26]} 42. Rb8 {[%emt 0:00:20]} Be4 {[%emt 0:00:26]} 43. Rb6 {[%emt 0:00:24]} Ke6 {[%emt 0:00:05]} 44. c5 {[%emt 0:00:39]} Rd2 {[%emt 0:01:19]} 45. Rxa6 {[%emt 0:01:05]} Ke5 {[%emt 0:00:20]} 46. c6 {[%emt 0:02:01]} Rc2 {[%emt 0:00:26]} 47. b5 {[%emt 0:00:28]} d5 {[%emt 0:01:29]} 48. b6 {[%emt 0:01:23]} Rxc6 {[%emt 0:00:08]} 49. b7 {[%emt 0:00:22]} Rc1+ {[%emt 0:00:05]} 50. Kf2 {[%emt 0:01:30]} Rb1 {[%emt 0:00:06]} 51. Ra7 {[%emt 0:03:44]} Rb2+ {[%emt 0:00:44]} 52. Ke1 {[%emt 0:00:23]} d4 {[%emt 0:00:13]} 53. a4 {[%emt 0:05:16]} d3 {[%emt 0:01:24]} 54. Ra5+ {[%emt 0:00:51]} Kd4 {[%emt 0:00:18]} 55. Rb5 {[%emt 0:07:15]} d2+ {[%emt 0:00:41]} 56. Kf2 {[%emt 0:01:03]} Rxb5 {[%emt 0:00:35]} 57. axb5 {[%emt 0:00:27]} Bxb7 {[%emt 0:00:05]} 58. Ke2 {[%emt 0:00:25]} Kc3 {[%emt 0:00:05]} 0-1

[Event "IIFL Wealth  4th Mumbai Junior U-13"]
[Site "Mumbai"]
[Date "2019.01.02"]
[Round "4"]
[White "Prakhar Chaturvedi"]
[Black "Swara Lakshmi S Nair"]
[Result "1/2-1/2"]
[ECO "B23"]
[WhiteElo "1235"]
[BlackElo "1415"]
[Annotator "NA RC"]
[PlyCount "107"]
[EventDate "2018.12.30"]
[EventType "swiss"]
[EventCountry "IND"]
[SourceTitle "playchess.com"]
[Source "ChessBase"]
[SourceQuality "1"]
[TimeControl "40/5400+30:1800+30"]

1. e4 {[%emt 0:00:00]} c5 {[%emt 0:00:46]} 2. Nc3 {[%emt 0:00:29]} Nc6 {[%emt 0:00:30]} 3. f4 {[%emt 0:01:12]} e6 {[%emt 0:04:07]} 4. Nf3 {[%emt 0:01:22]} Nge7 {[%emt 0:01:12]} 5. Bb5 {[%emt 0:00:53]} Nd4 {[%emt 0:00:30]} 6. d3 {[%emt 0:03:43]} g6 {[%emt 0:18:16]} 7. Be3 {[%emt 0:03:32]} Bg7 {[%emt 0:01:47]} 8. e5 {[%emt 0:01:12]} Qb6 {[%emt 0:10:40]} 9. a4 {[%emt 0:01:17]} Nef5 {[%emt 0:02:56]} 10. Bf2 {[%emt 0:03:03]} a6 {[%emt 0:09:09]} 11. a5 {[%emt 0:03:09]} Qc7 {[%emt 0:00:11]} 12. Bc4 {[%emt 0:00:30]} O-O {[%emt 0:02:24]} 13. Nxd4 {[%emt 0:23:30]} cxd4 {[%emt 0:00:51]} 14. Ne2 {[%emt 0:02:38]} d6 {[%emt 0:09:07]} 15. Nxd4 {[%emt 0:05:56]} dxe5 {[%emt 0:05:15]} 16. Nxf5 {[%emt 0:02:07]} exf5 {[%emt 0:00:09]} 17. fxe5 {[%emt 0:01:56]} Qxe5+ {[%emt 0:00:16]} 18. Qe2 {[%emt 0:00:17]} Qxe2+ 19. Kxe2 {[%emt 0:00:28]} Re8+ {[%emt 0:02:20]} 20. Kd1 {[%emt 0:01:22]} Be6 {[%emt 0:02:33]} 21. Bxe6 {[%emt 0:01:56]} Rxe6 {[%emt 0:00:08]} 22. c3 {[%emt 0:00:46]} Rae8 {[%emt 0:02:27]} 23. Re1 {[%emt 0:01:12]} h5 {[%emt 0:03:39]} 24. d4 {[%emt 0:02:54]} Rd8 {[%emt 0:04:47]} 25. Rxe6 {[%emt 0:02:21]} fxe6 {[%emt 0:00:06]} 26. Kc2 {[%emt 0:00:08]} e5 {[%emt 0:01:12]} 27. Rd1 {[%emt 0:01:10]} exd4 {[%emt 0:04:15]} 28. Bxd4 {[%emt 0:06:20]} Bxd4 {[%emt 0:01:04]} 29. Rxd4 {[%emt 0:00:09]} Rxd4 {[%emt 0:01:58]} 30. cxd4 {[%emt 0:00:01]} Kf7 {[%emt 0:00:17]} 31. Kd3 {[%emt 0:00:07]} Ke6 {[%emt 0:00:11]} 32. g3 {[%emt 0:00:29]} g5 {[%emt 0:07:08]} 33. Ke3 {[%emt 0:00:49]} Kd5 {[%emt 0:00:30]} 34. h4 {[%emt 0:00:21]} g4 {[%emt 0:01:39]} 35. Kf4 {[%emt 0:00:00]} Kxd4 {[%emt 0:00:40]} 36. Kxf5 {[%emt 0:01:17]} Kd3 {[%emt 0:00:21]} 37. Kg5 {[%emt 0:00:29]} Ke3 {[%emt 0:00:08]} 38. Kxh5 {[%emt 0:00:00]} Kf3 {[%emt 0:00:00]} 39. Kg5 {[%emt 0:00:00]} Kxg3 {[%emt 0:00:00]} 40. h5 {[%emt 0:00:00]} Kf3 {[%emt 0:00:00]} 41. h6 {[%emt 0:00:58]} g3 {[%emt 0:00:32]} 42. h7 {[%emt 0:00:05]} g2 {[%emt 0:00:04]} 43. h8=Q {[%emt 0:00:00]} g1=Q+ {[%emt 0:00:00]} 44. Kf5 {[%emt 0:00:00]} Qc1 {[%emt 0:01:18]} 45. Kg6 {[%emt 0:00:05]} Qc2+ {[%emt 0:01:17]} 46. Kg5 {[%emt 0:00:09]} Qd2+ {[%emt 0:01:03]} 47. Kg6 {[%emt 0:00:34]} Qd3+ {[%emt 0:00:31]} 48. Kg5 {[%emt 0:00:50]} Qe3+ {[%emt 0:00:17]} 49. Kg6 {[%emt 0:00:07]} Qe4+ {[%emt 0:00:45]} 50. Kf7 {[%emt 0:00:05]} Qd5+ {[%emt 0:00:36]} 51. Ke7 {[%emt 0:00:47]} Qc5+ {[%emt 0:02:15]} 52. Ke6 {[%emt 0:01:05]} Qxa5 {[%emt 0:01:11]} 53. Qh1+ {[%emt 0:00:11]} Ke3 {[%emt 0:00:40]} 54. Qc6 {[%emt 0:00:51] Kf3 [%clk 0:29:09] Qxf3 [%clk 1:02:22]} 1/2-1/2